[Event "Titled Tuesday Blitz November 15 Late 2022"]
[White "Cardoso Cardoso, Jose Gabriel"]
[Black "Pichot, Alan"]
[WhiteFideId "4430492"]
[BlackFideId "110973"]
[WhiteElo "2484"]
[BlackElo "2560"]
[Result "0-1"]
[Round "04"]
[TimeControl "180+1"]
[Date "2022.11.15"]
[WhiteClock "0:00:01"]
[BlackClock "0:00:04"]

1. d4 {[%clk 0:03:00]}  Nf6 {[%clk 0:02:58]} 2. Nc3 {[%clk 0:03:01]}  d5 {[%clk 0:02:58]} 3. Bf4 {[%clk 0:03:01]}  Bf5 {[%clk 0:02:58]} 4. f3 {[%clk 0:03:01]}  c6 {[%clk 0:02:56]} 5. g4 {[%clk 0:03:01]}  Bg6 {[%clk 0:02:56]} 6. h4 {[%clk 0:03:02]}  h6 {[%clk 0:02:57]} 7. e3 {[%clk 0:03:02]}  e6 {[%clk 0:02:57]} 8. Bd3 {[%clk 0:03:02]}  Bxd3 {[%clk 0:02:56]} 9. Qxd3 {[%clk 0:03:03]}  Bd6 {[%clk 0:02:56]} 10. Nge2 {[%clk 0:03:04]}  Qe7 {[%clk 0:02:56]} 11. O-O-O {[%clk 0:03:01]}  Nbd7 {[%clk 0:02:56]} 12. g5 {[%clk 0:02:22]}  Nh5 {[%clk 0:02:50]} 13. Bxd6 {[%clk 0:02:22]}  Qxd6 {[%clk 0:02:51]} 14. f4 {[%clk 0:02:22]}  O-O-O {[%clk 0:02:49]} 15. Kb1 {[%clk 0:02:21]}  Kb8 {[%clk 0:02:44]} 16. g6 {[%clk 0:02:08]}  f5 {[%clk 0:02:41]} 17. Ng1 {[%clk 0:02:06]}  Nf8 {[%clk 0:02:23]} 18. Nf3 {[%clk 0:02:04]}  Nd7 {[%clk 0:02:01]} 19. Ne2 {[%clk 0:01:54]}  Rhe8 {[%clk 0:01:58]} 20. Ne5 {[%clk 0:01:53]}  Nxe5 {[%clk 0:01:58]} 21. fxe5 {[%clk 0:01:53]}  Qc7 {[%clk 0:01:53]} 22. Rhg1 {[%clk 0:01:49]}  c5 {[%clk 0:01:50]} 23. Nc3 {[%clk 0:01:41]}  f4 {[%clk 0:01:41]} 24. Nb5 {[%clk 0:01:20]}  Qb6 {[%clk 0:01:38]} 25. Nd6 {[%clk 0:01:19]}  Rf8 {[%clk 0:01:38]} 26. Nf7 {[%clk 0:01:11]}  Rc8 {[%clk 0:01:39]} 27. exf4 {[%clk 0:01:07]}  c4 {[%clk 0:01:07]} 28. Qa3 {[%clk 0:00:35]}  Nxf4 {[%clk 0:01:06]} 29. Qd6+ {[%clk 0:00:32]}  Ka8 {[%clk 0:00:55]} 30. c3 {[%clk 0:00:22]}  Qb5 {[%clk 0:00:38]} 31. Ka1 {[%clk 0:00:14]}  Rfe8 {[%clk 0:00:29]} 32. Qa3 {[%clk 0:00:10]}  Nd3 {[%clk 0:00:13]} 33. Nd6 {[%clk 0:00:10]}  Qb6 {[%clk 0:00:13]} 34. Nxe8 {[%clk 0:00:11]}  Rxe8 {[%clk 0:00:14]} 35. Rgf1 {[%clk 0:00:10]}  a6 {[%clk 0:00:14]} 36. Rf8 {[%clk 0:00:05]}  Rxf8 {[%clk 0:00:14]} 37. Qxf8+ {[%clk 0:00:06]}  Ka7 {[%clk 0:00:15]} 38. Qa3 {[%clk 0:00:02]}  Qd8 {[%clk 0:00:14]} 39. Kb1 {[%clk 0:00:01]}  Qxh4 {[%clk 0:00:14]} 40. b3 {[%clk 0:00:01]}  Qg4 {[%clk 0:00:13]} 41. Rxd3 {[%clk 0:00:01]}  Qg1+ {[%clk 0:00:07]} 42. Kb2 {[%clk 0:00:02]}  Qf2+ {[%clk 0:00:07]} 43. Kc1 {[%clk 0:00:02]}  cxd3 {[%clk 0:00:04]} 44. Qc5+ {[%clk 0:00:02]}  Kb8 {[%clk 0:00:04]} 45. Qd6+ {[%clk 0:00:03]}  Kc8 {[%clk 0:00:05]} 46. Qxe6+ {[%clk 0:00:03]}  Kc7 {[%clk 0:00:04]} 47. Qd6+ {[%clk 0:00:03]}  Kc8 {[%clk 0:00:04]} 48. Qc5+ {[%clk 0:00:03]}  Kb8 {[%clk 0:00:04]} 49. Qd6+ {[%clk 0:00:03]}  Ka8 {[%clk 0:00:04]} 50. Qd8+ {[%clk 0:00:01]}  Ka7 {[%clk 0:00:04]} 0-1


[Site "https://www.chess.com"]

[Event "Titled Tuesday Blitz November 15 Late 2022"]
[White "Castella Garcia, Fausto"]
[Black "Gardezi, Arsal"]
[WhiteFideId "3501922"]
[BlackFideId "30949521"]
[WhiteElo "2245"]
[BlackElo "1906"]
[Result "1-0"]
[Round "04"]
[TimeControl "180+1"]
[Date "2022.11.16"]
[WhiteClock "0:02:27"]
[BlackClock "0:02:05"]

1. e4 {[%clk 0:03:00]}  e6 {[%clk 0:02:57]} 2. Nf3 {[%clk 0:02:59]}  d5 {[%clk 0:02:57]} 3. e5 {[%clk 0:02:58]}  c5 {[%clk 0:02:57]} 4. b4 {[%clk 0:02:57]}  cxb4 {[%clk 0:02:54]} 5. a3 {[%clk 0:02:51]}  Nc6 {[%clk 0:02:51]} 6. d4 {[%clk 0:02:51]}  Nge7 {[%clk 0:02:38]} 7. axb4 {[%clk 0:02:49]}  Nxb4 {[%clk 0:02:38]} 8. c3 {[%clk 0:02:48]}  Nbc6 {[%clk 0:02:39]} 9. Bd3 {[%clk 0:02:49]}  Ng6 {[%clk 0:02:36]} 10. h4 {[%clk 0:02:47]}  Be7 {[%clk 0:02:31]} 11. h5 {[%clk 0:02:47]}  Nf4 {[%clk 0:02:32]} 12. Bxf4 {[%clk 0:02:46]}  Qc7 {[%clk 0:02:29]} 13. Na3 {[%clk 0:02:45]}  Qa5 {[%clk 0:02:25]} 14. Nb5 {[%clk 0:02:44]}  Qb6 {[%clk 0:02:25]} 15. Rb1 {[%clk 0:02:42]}  O-O {[%clk 0:02:23]} 16. h6 {[%clk 0:02:39]}  g6 {[%clk 0:02:23]} 17. Bg5 {[%clk 0:02:38]}  Qa5 {[%clk 0:02:21]} 18. Bxe7 {[%clk 0:02:37]}  Nxe7 {[%clk 0:02:22]} 19. Qd2 {[%clk 0:02:34]}  a6 {[%clk 0:02:22]} 20. Nd6 {[%clk 0:02:34]}  Bd7 {[%clk 0:02:23]} 21. O-O {[%clk 0:02:29]}  b5 {[%clk 0:02:20]} 22. Qg5 {[%clk 0:02:29]}  Nf5 {[%clk 0:02:04]} 23. Bxf5 {[%clk 0:02:28]}  exf5 {[%clk 0:02:05]} 24. Qf6 {[%clk 0:02:27]} 1-0


[Site "https://www.chess.com"]

[Event "Titled Tuesday Blitz November 15 Late 2022"]
[White "Chirilov, James A"]
[Black "Klenburg, Michael"]
[WhiteFideId "30976677"]
[BlackFideId "14102072"]
[WhiteElo "1790"]
[BlackElo "2405"]
[Result "0-1"]
[Round "04"]
[TimeControl "180+1"]
[Date "2022.11.16"]
[WhiteClock "0:00:03"]
[BlackClock "0:00:27"]

1. e4 {[%clk 0:03:00]}  d6 {[%clk 0:02:55]} 2. d4 {[%clk 0:02:57]}  Nf6 {[%clk 0:02:55]} 3. Nc3 {[%clk 0:02:53]}  g6 {[%clk 0:02:55]} 4. Bc4 {[%clk 0:02:52]}  Bg7 {[%clk 0:02:55]} 5. Qe2 {[%clk 0:02:52]}  c6 {[%clk 0:02:53]} 6. Nf3 {[%clk 0:02:49]}  O-O {[%clk 0:02:52]} 7. e5 {[%clk 0:02:49]}  dxe5 {[%clk 0:02:52]} 8. dxe5 {[%clk 0:02:50]}  Nd5 {[%clk 0:02:52]} 9. Bd2 {[%clk 0:02:43]}  Nxc3 {[%clk 0:02:52]} 10. Bxc3 {[%clk 0:02:39]}  b5 {[%clk 0:02:52]} 11. Bd3 {[%clk 0:02:36]}  Qc7 {[%clk 0:02:40]} 12. h3 {[%clk 0:02:17]}  a5 {[%clk 0:02:38]} 13. a3 {[%clk 0:02:13]}  Be6 {[%clk 0:02:35]} 14. O-O {[%clk 0:02:13]}  Nd7 {[%clk 0:02:32]} 15. Ng5 {[%clk 0:02:06]}  Nc5 {[%clk 0:02:31]} 16. Nxe6 {[%clk 0:02:04]}  Nxe6 {[%clk 0:02:31]} 17. Qf3 {[%clk 0:01:56]}  Rab8 {[%clk 0:02:18]} 18. b4 {[%clk 0:01:30]}  axb4 {[%clk 0:02:15]} 19. axb4 {[%clk 0:01:31]}  c5 {[%clk 0:02:15]} 20. Qe4 {[%clk 0:00:50]}  cxb4 {[%clk 0:01:50]} 21. Bxb4 {[%clk 0:00:51]}  Bxe5 {[%clk 0:01:44]} 22. Rab1 {[%clk 0:00:40]}  Bf6 {[%clk 0:01:33]} 23. Rfe1 {[%clk 0:00:39]}  Nc5 {[%clk 0:01:24]} 24. Qd5 {[%clk 0:00:24]}  Nxd3 {[%clk 0:01:20]} 25. Qxd3 {[%clk 0:00:25]}  Rfd8 {[%clk 0:01:18]} 26. Qe2 {[%clk 0:00:20]}  e6 {[%clk 0:01:15]} 27. h4 {[%clk 0:00:18]}  Bxh4 {[%clk 0:01:09]} 28. Ra1 {[%clk 0:00:16]}  Bf6 {[%clk 0:01:07]} 29. Ra6 {[%clk 0:00:15]}  Rdc8 {[%clk 0:01:00]} 30. Ra2 {[%clk 0:00:10]}  Bc3 {[%clk 0:00:57]} 31. Rb1 {[%clk 0:00:09]}  Qc4 {[%clk 0:00:47]} 32. Qxc4 {[%clk 0:00:06]}  bxc4 {[%clk 0:00:46]} 33. Ra4 {[%clk 0:00:04]}  Rc6 {[%clk 0:00:40]} 34. Bxc3 {[%clk 0:00:02]}  Rxb1+ {[%clk 0:00:38]} 35. Kh2 {[%clk 0:00:03]}  Rb8 {[%clk 0:00:38]} 36. Ra7 {[%clk 0:00:03]}  h6 {[%clk 0:00:35]} 37. Rd7 {[%clk 0:00:03]}  g5 {[%clk 0:00:35]} 38. Rd4 {[%clk 0:00:04]}  Rbc8 {[%clk 0:00:34]} 39. Rd7 {[%clk 0:00:04]}  Rf8 {[%clk 0:00:32]} 40. Rb7 {[%clk 0:00:05]}  Kh7 {[%clk 0:00:31]} 41. g4 {[%clk 0:00:05]}  Kg6 {[%clk 0:00:31]} 42. Kg3 {[%clk 0:00:05]}  Ra8 {[%clk 0:00:28]} 43. Rb2 {[%clk 0:00:03]}  Ra3 {[%clk 0:00:27]} 0-1


[Site "https://www.chess.com"]

[Event "Titled Tuesday Blitz November 15 Late 2022"]
[White "Curtis, John"]
[Black "Riff, Vincent"]
[WhiteFideId "3200256"]
[BlackFideId "617776"]
[WhiteElo "2203"]
[BlackElo "2369"]
[Result "0-1"]
[Round "04"]
[TimeControl "180+1"]
[Date "2022.11.16"]
[WhiteClock "0:00:02"]
[BlackClock "0:00:13"]

1. e4 {[%clk 0:02:59]}  c5 {[%clk 0:02:56]} 2. Nf3 {[%clk 0:02:58]}  Nc6 {[%clk 0:02:55]} 3. d4 {[%clk 0:02:58]}  cxd4 {[%clk 0:02:56]} 4. Nxd4 {[%clk 0:02:58]}  e5 {[%clk 0:02:57]} 5. Nb5 {[%clk 0:02:57]}  d6 {[%clk 0:02:57]} 6. Bc4 {[%clk 0:02:51]}  Be6 {[%clk 0:02:55]} 7. Bb3 {[%clk 0:02:45]}  Nf6 {[%clk 0:02:47]} 8. Bg5 {[%clk 0:02:42]}  Qa5+ {[%clk 0:02:35]} 9. N1c3 {[%clk 0:02:13]}  Nxe4 {[%clk 0:02:34]} 10. Bd2 {[%clk 0:01:53]}  Nxd2 {[%clk 0:02:25]} 11. Qxd2 {[%clk 0:01:53]}  Bxb3 {[%clk 0:02:17]} 12. cxb3 {[%clk 0:01:53]}  a6 {[%clk 0:02:13]} 13. Na3 {[%clk 0:01:51]}  Be7 {[%clk 0:02:09]} 14. Nc4 {[%clk 0:01:45]}  Qd8 {[%clk 0:02:09]} 15. Nd5 {[%clk 0:01:45]}  O-O {[%clk 0:02:07]} 16. Ncb6 {[%clk 0:01:42]}  Rb8 {[%clk 0:02:04]} 17. O-O {[%clk 0:01:40]}  Nd4 {[%clk 0:02:04]} 18. f4 {[%clk 0:01:40]}  Re8 {[%clk 0:01:57]} 19. Rae1 {[%clk 0:01:36]}  Bf8 {[%clk 0:01:51]} 20. a4 {[%clk 0:01:28]}  Nxb3 {[%clk 0:01:47]} 21. Qd1 {[%clk 0:01:18]}  Nd4 {[%clk 0:01:44]} 22. f5 {[%clk 0:01:09]}  Qg5 {[%clk 0:01:24]} 23. b4 {[%clk 0:00:53]}  Nxf5 {[%clk 0:01:17]} 24. Qf3 {[%clk 0:00:43]}  Nh6 {[%clk 0:01:15]} 25. Nd7 {[%clk 0:00:32]}  Rbd8 {[%clk 0:01:13]} 26. N7b6 {[%clk 0:00:26]}  Kh8 {[%clk 0:01:03]} 27. Re4 {[%clk 0:00:24]}  f5 {[%clk 0:01:03]} 28. Ree1 {[%clk 0:00:23]}  e4 {[%clk 0:00:58]} 29. Qb3 {[%clk 0:00:22]}  Re5 {[%clk 0:00:52]} 30. h3 {[%clk 0:00:21]}  Rde8 {[%clk 0:00:48]} 31. Nc7 {[%clk 0:00:21]}  R8e7 {[%clk 0:00:31]} 32. Nbd5 {[%clk 0:00:19]}  Rd7 {[%clk 0:00:25]} 33. Na8 {[%clk 0:00:19]}  Re6 {[%clk 0:00:20]} 34. Nab6 {[%clk 0:00:19]}  Rf7 {[%clk 0:00:19]} 35. Nf4 {[%clk 0:00:18]}  Ref6 {[%clk 0:00:19]} 36. Nfd5 {[%clk 0:00:18]}  Rg6 {[%clk 0:00:19]} 37. Nf4 {[%clk 0:00:18]}  Qf6 {[%clk 0:00:16]} 38. Re2 {[%clk 0:00:18]}  Rg5 {[%clk 0:00:14]} 39. Nfd5 {[%clk 0:00:18]}  Qd4+ {[%clk 0:00:14]} 40. Kh1 {[%clk 0:00:17]}  f4 {[%clk 0:00:14]} 41. Rxf4 {[%clk 0:00:12]}  Rxf4 {[%clk 0:00:14]} 42. Nxf4 {[%clk 0:00:12]}  Qa1+ {[%clk 0:00:14]} 43. Kh2 {[%clk 0:00:12]}  Qe5 {[%clk 0:00:14]} 44. g3 {[%clk 0:00:12]}  Be7 {[%clk 0:00:11]} 45. Nd7 {[%clk 0:00:11]}  Qf5 {[%clk 0:00:11]} 46. Qe6 {[%clk 0:00:10]}  Qxe6 {[%clk 0:00:10]} 47. Nxe6 {[%clk 0:00:11]}  Rf5 {[%clk 0:00:11]} 48. Rxe4 {[%clk 0:00:10]}  Ng8 {[%clk 0:00:10]} 49. g4 {[%clk 0:00:10]}  Rf2+ {[%clk 0:00:10]} 50. Kg3 {[%clk 0:00:11]}  Rb2 {[%clk 0:00:10]} 51. h4 {[%clk 0:00:11]}  d5 {[%clk 0:00:11]} 52. Rd4 {[%clk 0:00:10]}  Rb3+ {[%clk 0:00:11]} 53. Kg2 {[%clk 0:00:10]}  Rxb4 {[%clk 0:00:12]} 54. Rxd5 {[%clk 0:00:09]}  Rxg4+ {[%clk 0:00:12]} 55. Kf3 {[%clk 0:00:08]}  Rxa4 {[%clk 0:00:12]} 56. Ne5 {[%clk 0:00:08]}  h6 {[%clk 0:00:12]} 57. Ng6+ {[%clk 0:00:08]}  Kh7 {[%clk 0:00:12]} 58. h5 {[%clk 0:00:07]}  Nf6 {[%clk 0:00:11]} 59. Rf5 {[%clk 0:00:05]}  Ra3+ {[%clk 0:00:11]} 60. Ke2 {[%clk 0:00:04]}  Bd6 {[%clk 0:00:10]} 61. Nef8+ {[%clk 0:00:03]}  Bxf8 {[%clk 0:00:09]} 62. Nxf8+ {[%clk 0:00:04]}  Kg8 {[%clk 0:00:10]} 63. Ng6 {[%clk 0:00:05]}  Ra4 {[%clk 0:00:10]} 64. Nf4 {[%clk 0:00:04]}  Re4+ {[%clk 0:00:10]} 65. Kf3 {[%clk 0:00:04]}  Re8 {[%clk 0:00:10]} 66. Rc5 {[%clk 0:00:04]}  Nd7 {[%clk 0:00:11]} 67. Rc7 {[%clk 0:00:04]}  Re7 {[%clk 0:00:11]} 68. Rxb7 {[%clk 0:00:02]}  Ne5+ {[%clk 0:00:11]} 69. Kg3 {[%clk 0:00:03]}  Rxb7 {[%clk 0:00:12]} 70. Ne6 {[%clk 0:00:03]}  Rb3+ {[%clk 0:00:12]} 71. Kf4 {[%clk 0:00:02]}  Rb5 {[%clk 0:00:13]} 72. Kf5 {[%clk 0:00:03]}  Nf7+ {[%clk 0:00:14]} 73. Kf4 {[%clk 0:00:01]}  Re5 {[%clk 0:00:12]} 74. Nc7 {[%clk 0:00:01]}  Rxh5 {[%clk 0:00:12]} 75. Nxa6 {[%clk 0:00:02]}  Rg5 {[%clk 0:00:12]} 76. Nc7 {[%clk 0:00:01]}  Nh8 {[%clk 0:00:13]} 77. Ne6 {[%clk 0:00:02]}  Kf7 {[%clk 0:00:13]} 0-1


[Site "https://www.chess.com"]

[Event "Titled Tuesday Blitz November 15 Late 2022"]
[White "Fernandez De La Vara, Arnaldo"]
[Black "Jimenez Almeida, Luis David"]
[WhiteFideId "3518388"]
[BlackFideId "22242244"]
[WhiteElo "2387"]
[BlackElo "2158"]
[Result "1-0"]
[Round "04"]
[TimeControl "180+1"]
[Date "2022.11.16"]
[WhiteClock "0:01:58"]
[BlackClock "0:02:25"]

1. Nf3 {[%clk 0:03:00]}  d5 {[%clk 0:02:57]} 2. g3 {[%clk 0:03:00]}  Nf6 {[%clk 0:02:56]} 3. Bg2 {[%clk 0:03:01]}  e6 {[%clk 0:02:57]} 4. c4 {[%clk 0:03:00]}  Be7 {[%clk 0:02:56]} 5. b3 {[%clk 0:03:00]}  d4 {[%clk 0:02:56]} 6. b4 {[%clk 0:02:55]}  Bxb4 {[%clk 0:02:53]} 7. Qa4+ {[%clk 0:02:55]}  Nc6 {[%clk 0:02:52]} 8. Ne5 {[%clk 0:02:54]}  a5 {[%clk 0:02:34]} 9. Nxc6 {[%clk 0:02:30]}  bxc6 {[%clk 0:02:34]} 10. Qxc6+ {[%clk 0:02:31]}  Bd7 {[%clk 0:02:28]} 11. Qxa8 {[%clk 0:02:31]}  Qxa8 {[%clk 0:02:26]} 12. Bxa8 {[%clk 0:02:32]}  c6 {[%clk 0:02:26]} 13. Bb7 {[%clk 0:02:01]}  Ke7 {[%clk 0:02:25]} 14. c5 {[%clk 0:01:58]} 1-0


[Site "https://www.chess.com"]

[Event "Titled Tuesday Blitz November 15 Late 2022"]
[White "Fernandez Siles, Luis"]
[Black "Sailer, Mike"]
[WhiteFideId "2209420"]
[BlackFideId "2012901"]
[WhiteElo "2186"]
[BlackElo "2109"]
[Result "0-1"]
[Round "04"]
[TimeControl "180+1"]
[Date "2022.11.16"]
[WhiteClock "0:00:01"]
[BlackClock "0:00:03"]

1. d4 {[%clk 0:03:00]}  d5 {[%clk 0:02:59]} 2. c4 {[%clk 0:03:00]}  Bf5 {[%clk 0:02:55]} 3. Nc3 {[%clk 0:02:53]}  e6 {[%clk 0:02:54]} 4. Nf3 {[%clk 0:02:52]}  Nc6 {[%clk 0:02:53]} 5. e3 {[%clk 0:02:53]}  Nb4 {[%clk 0:02:45]} 6. e4 {[%clk 0:02:33]}  dxe4 {[%clk 0:02:44]} 7. Ng5 {[%clk 0:02:33]}  e3 {[%clk 0:02:32]} 8. Nge4 {[%clk 0:02:33]}  exf2+ {[%clk 0:02:24]} 9. Kxf2 {[%clk 0:02:34]}  Nf6 {[%clk 0:02:23]} 10. Ng3 {[%clk 0:02:13]}  Ng4+ {[%clk 0:02:03]} 11. Kf3 {[%clk 0:01:53]}  Nc2 {[%clk 0:01:34]} 12. Nxf5 {[%clk 0:01:49]}  Nxa1 {[%clk 0:01:34]} 13. Ng3 {[%clk 0:01:27]}  h5 {[%clk 0:01:19]} 14. Bf4 {[%clk 0:01:15]}  Bd6 {[%clk 0:01:05]} 15. Bxd6 {[%clk 0:01:02]}  Qxd6 {[%clk 0:01:04]} 16. Be2 {[%clk 0:00:45]}  O-O-O {[%clk 0:00:56]} 17. Nce4 {[%clk 0:00:38]}  Qb6 {[%clk 0:00:41]} 18. Qxa1 {[%clk 0:00:32]}  Qxd4 {[%clk 0:00:41]} 19. Qg1 {[%clk 0:00:28]}  Qxb2 {[%clk 0:00:35]} 20. Qxa7 {[%clk 0:00:18]}  Qe5 {[%clk 0:00:11]} 21. Qa8+ {[%clk 0:00:13]}  Kd7 {[%clk 0:00:11]} 22. Qxb7 {[%clk 0:00:14]}  f5 {[%clk 0:00:07]} 23. Qb5+ {[%clk 0:00:07]}  Ke7 {[%clk 0:00:08]} 24. Qxe5 {[%clk 0:00:07]}  Nxe5+ {[%clk 0:00:08]} 25. Kf4 {[%clk 0:00:07]}  Nf7 {[%clk 0:00:05]} 26. Ng5 {[%clk 0:00:07]}  Kf6 {[%clk 0:00:03]} 27. Nxf7 {[%clk 0:00:07]}  Kxf7 {[%clk 0:00:04]} 28. Rd1 {[%clk 0:00:06]}  Kf6 {[%clk 0:00:03]} 29. Rxd8 {[%clk 0:00:06]}  g5+ {[%clk 0:00:04]} 30. Kf3 {[%clk 0:00:05]}  Rxd8 {[%clk 0:00:04]} 31. c5 {[%clk 0:00:05]}  e5 {[%clk 0:00:05]} 32. Nxh5+ {[%clk 0:00:05]}  Kg6 {[%clk 0:00:05]} 33. Ng3 {[%clk 0:00:05]}  e4+ {[%clk 0:00:04]} 34. Nxe4 {[%clk 0:00:05]}  fxe4+ {[%clk 0:00:04]} 35. Kxe4 {[%clk 0:00:06]}  Rd2 {[%clk 0:00:04]} 36. Bf3 {[%clk 0:00:05]}  Rxa2 {[%clk 0:00:04]} 37. Kd5 {[%clk 0:00:06]}  Rd2+ {[%clk 0:00:03]} 38. Kc6 {[%clk 0:00:05]}  Rc2 {[%clk 0:00:03]} 39. h3 {[%clk 0:00:04]}  Kf5 {[%clk 0:00:03]} 40. Kb5 {[%clk 0:00:04]}  Kf4 {[%clk 0:00:04]} 41. c6 {[%clk 0:00:04]}  Kg3 {[%clk 0:00:03]} 42. Ka6 {[%clk 0:00:04]}  Rb2 {[%clk 0:00:04]} 43. Ka7 {[%clk 0:00:03]}  Kf4 {[%clk 0:00:03]} 44. Bg4 {[%clk 0:00:01]}  Kg3 {[%clk 0:00:03]} 45. Bc8 {[%clk 0:00:01]}  Rxg2 {[%clk 0:00:03]} 0-1


[Site "https://www.chess.com"]

[Event "Titled Tuesday Blitz November 15 Late 2022"]
[White "Figorito, Nick"]
[Black "Vargas, Mauricio"]
[WhiteFideId "30923689"]
[BlackFideId "4404572"]
[WhiteElo "2349"]
[BlackElo "2025"]
[Result "1-0"]
[Round "04"]
[TimeControl "180+1"]
[Date "2022.11.16"]
[WhiteClock "0:00:54"]
[BlackClock "0:00:26"]

1. Nf3 {[%clk 0:03:00]}  Nc6 {[%clk 0:02:56]} 2. e4 {[%clk 0:03:00]}  d6 {[%clk 0:02:54]} 3. h3 {[%clk 0:02:59]}  g6 {[%clk 0:02:53]} 4. Bc4 {[%clk 0:02:59]}  Bg7 {[%clk 0:02:53]} 5. O-O {[%clk 0:03:00]}  Nf6 {[%clk 0:02:53]} 6. d3 {[%clk 0:03:00]}  O-O {[%clk 0:02:50]} 7. a4 {[%clk 0:03:00]}  e6 {[%clk 0:02:48]} 8. Nc3 {[%clk 0:02:59]}  Ne7 {[%clk 0:02:46]} 9. Bg5 {[%clk 0:02:59]}  c6 {[%clk 0:02:44]} 10. Qd2 {[%clk 0:02:58]}  a6 {[%clk 0:02:43]} 11. Bh6 {[%clk 0:02:58]}  b5 {[%clk 0:02:39]} 12. axb5 {[%clk 0:02:58]}  cxb5 {[%clk 0:02:38]} 13. Bxg7 {[%clk 0:02:58]}  Kxg7 {[%clk 0:02:34]} 14. Bxb5 {[%clk 0:02:55]}  Bb7 {[%clk 0:02:33]} 15. Bc4 {[%clk 0:02:54]}  d5 {[%clk 0:02:26]} 16. exd5 {[%clk 0:02:55]}  exd5 {[%clk 0:02:26]} 17. Bb3 {[%clk 0:02:52]}  Re8 {[%clk 0:02:26]} 18. Nd4 {[%clk 0:02:36]}  Nc6 {[%clk 0:02:16]} 19. Nxc6 {[%clk 0:02:35]}  Bxc6 {[%clk 0:02:15]} 20. Rfe1 {[%clk 0:02:32]}  d4 {[%clk 0:02:14]} 21. Ne2 {[%clk 0:02:17]}  Qd6 {[%clk 0:02:04]} 22. Qf4 {[%clk 0:02:11]}  Qd7 {[%clk 0:01:51]} 23. Nxd4 {[%clk 0:01:52]}  Bb7 {[%clk 0:01:47]} 24. Nf3 {[%clk 0:01:45]}  Qc6 {[%clk 0:01:34]} 25. Qg3 {[%clk 0:01:17]}  Nh5 {[%clk 0:01:25]} 26. Qh2 {[%clk 0:01:16]}  a5 {[%clk 0:01:13]} 27. Ne5 {[%clk 0:01:06]}  Qc5 {[%clk 0:00:44]} 28. Nxf7 {[%clk 0:00:54]}  a4 {[%clk 0:00:26]} 29. Bc4 {[%clk 0:00:54]} 1-0


[Site "https://www.chess.com"]

[Event "Titled Tuesday Blitz November 15 Late 2022"]
[White "Gasparyan, David"]
[Black "Nasuta, Grzegorz"]
[WhiteFideId "13311980"]
[BlackFideId "1141686"]
[WhiteElo "2300"]
[BlackElo "2440"]
[Result "1-0"]
[Round "04"]
[TimeControl "180+1"]
[Date "2022.11.16"]
[WhiteClock "0:00:18"]
[BlackClock "0:00:04"]

1. Nf3 {[%clk 0:03:00]}  d5 {[%clk 0:02:58]} 2. d4 {[%clk 0:03:00]}  Nf6 {[%clk 0:02:56]} 3. Bf4 {[%clk 0:02:59]}  c5 {[%clk 0:02:56]} 4. e3 {[%clk 0:02:59]}  Nc6 {[%clk 0:02:56]} 5. c3 {[%clk 0:02:57]}  Qb6 {[%clk 0:02:56]} 6. Qc1 {[%clk 0:02:55]}  Bf5 {[%clk 0:02:45]} 7. a4 {[%clk 0:02:47]}  c4 {[%clk 0:02:13]} 8. Nbd2 {[%clk 0:02:20]}  h6 {[%clk 0:02:08]} 9. h3 {[%clk 0:02:15]}  e6 {[%clk 0:02:08]} 10. g4 {[%clk 0:02:09]}  Bg6 {[%clk 0:02:05]} 11. Be2 {[%clk 0:02:09]}  Be7 {[%clk 0:02:05]} 12. Bd1 {[%clk 0:01:59]}  Na5 {[%clk 0:02:04]} 13. Bc2 {[%clk 0:01:58]}  Bxc2 {[%clk 0:02:04]} 14. Qxc2 {[%clk 0:01:59]}  Rc8 {[%clk 0:01:10]} 15. O-O {[%clk 0:01:38]}  Nb3 {[%clk 0:00:52]} 16. Rab1 {[%clk 0:01:25]}  Nxd2 {[%clk 0:00:46]} 17. Nxd2 {[%clk 0:01:25]}  Qc6 {[%clk 0:00:45]} 18. f3 {[%clk 0:01:22]}  Nd7 {[%clk 0:00:43]} 19. e4 {[%clk 0:01:19]}  dxe4 {[%clk 0:00:30]} 20. fxe4 {[%clk 0:01:04]}  e5 {[%clk 0:00:30]} 21. Be3 {[%clk 0:00:53]}  Bg5 {[%clk 0:00:29]} 22. Rbe1 {[%clk 0:00:48]}  Bxe3+ {[%clk 0:00:28]} 23. Rxe3 {[%clk 0:00:48]}  O-O {[%clk 0:00:26]} 24. Nf3 {[%clk 0:00:44]}  Rfe8 {[%clk 0:00:25]} 25. Nh4 {[%clk 0:00:34]}  exd4 {[%clk 0:00:17]} 26. cxd4 {[%clk 0:00:35]}  g6 {[%clk 0:00:16]} 27. Qf2 {[%clk 0:00:33]}  Re7 {[%clk 0:00:16]} 28. Nf3 {[%clk 0:00:26]}  Rf8 {[%clk 0:00:14]} 29. Nd2 {[%clk 0:00:25]}  Qxa4 {[%clk 0:00:14]} 30. e5 {[%clk 0:00:22]}  Qc6 {[%clk 0:00:14]} 31. Ne4 {[%clk 0:00:21]}  Qd5 {[%clk 0:00:13]} 32. Rd1 {[%clk 0:00:19]}  Re6 {[%clk 0:00:13]} 33. Nc3 {[%clk 0:00:18]}  Qa5 {[%clk 0:00:13]} 34. Qf4 {[%clk 0:00:18]}  b5 {[%clk 0:00:13]} 35. Qxh6 {[%clk 0:00:18]}  b4 {[%clk 0:00:13]} 36. Ne4 {[%clk 0:00:18]}  Qd5 {[%clk 0:00:12]} 37. Ng5 {[%clk 0:00:19]}  Rxe5 {[%clk 0:00:04]} 38. Qh7# {[%clk 0:00:18]} 1-0


[Site "https://www.chess.com"]